bitfinex-derivatives/quotes_BTCF0:USTF0_20250724
["timestamp","ask_amount","ask_price","bid_price","bid_amount"]
[1753377170941,0.76984061,119000.0,118990.0,2.19696612]
[1753377171131,0.93781961,119000.0,118990.0,2.19696612]
[1753377171531,0.76984061,119000.0,118990.0,2.19696612]
[1753377171737,0.76984061,119000.0,118990.0,2.70230612]
[1753377172132,0.93781951,119000.0,118990.0,2.42230612]
[1753377173030,0.93781951,119000.0,118990.0,2.17696612]
[1753377173225,0.93781951,119000.0,118990.0,1.57668582]
[1753377173430,0.93781951,119000.0,118990.0,2.0669129]
[1753377173835,0.93781951,119000.0,118990.0,0.8081529]
[1753377175639,0.93781951,119000.0,118990.0,0.85338991]
[1753377176540,0.93781951,119000.0,118990.0,0.89856991]
[1753377177042,0.93781951,119000.0,118990.0,0.8533329]
[1753377178443,0.93781951,119000.0,118990.0,0.89857213]
[1753377180443,0.93781951,119000.0,118990.0,0.81339213]
[1753377181241,0.93781951,119000.0,118990.0,0.85857213]
[1753377182643,0.95530428,119000.0,118990.0,0.85857213]
[1753377183440,0.1679929,118990.0,118980.0,0.04518]
[1753377183640,0.5218471,118980.0,118970.0,0.11391676]
[1753377183834,0.6307671,118980.0,118970.0,0.66024292]
[1753377184034,0.92424715,118980.0,118970.0,0.66024292]
[1753377184344,0.92424715,118980.0,118970.0,0.59996]
[1753377184748,1.17424715,118980.0,118970.0,0.59996]
[1753377185046,0.6307812,118970.0,118960.0,0.38272647]
[1753377185253,0.6307812,118970.0,118960.0,0.90039475]
[1753377185437,0.92555288,118970.0,118960.0,0.13240015]
[1753377185638,0.92555288,118970.0,118960.0,0.74069582]
[1753377186050,0.92555288,118970.0,118960.0,0.90873112]
[1753377186351,0.92555288,118970.0,118960.0,0.74069582]
[1753377186649,0.92555288,118970.0,118960.0,0.90873102]
[1753377187043,0.92555288,118970.0,118960.0,0.74065582]
[1753377187343,0.92555288,118970.0,118960.0,0.90873102]
[1753377188247,0.92555288,118970.0,118960.0,0.74069582]
[1753377188650,0.92555288,118970.0,118960.0,0.90873102]
[1753377189451,0.92555288,118970.0,118960.0,0.74069582]
[1753377189847,0.92555288,118970.0,118960.0,0.90873102]
[1753377190047,0.92555288,118970.0,118960.0,0.74069582]
[1753377190244,0.92555288,118970.0,118960.0,0.90873102]
[1753377190445,0.92555288,118970.0,118960.0,0.94006102]
[1753377190644,0.92555288,118970.0,118960.0,1.17105102]
[1753377190845,0.92555288,118970.0,118960.0,0.57109102]
[1753377191051,0.92555288,118970.0,118960.0,1.32770102]
[1753377192053,0.92555288,118970.0,118960.0,1.64770102]
[1753377192054,0.75743288,118970.0,118960.0,1.64770102]
[1753377192347,0.60298288,118970.0,118960.0,1.64770102]
[1753377192544,0.33448168,118970.0,118960.0,1.64770102]
[1753377192749,0.12665168,118970.0,118960.0,1.70798394]
[1753377193049,0.12665168,118970.0,118960.0,1.64770102]
[1753377193348,0.12665168,118970.0,118960.0,1.70798394]
[1753377194351,0.12665168,118970.0,118960.0,1.64770102]
[1753377194646,0.6564664,118990.0,118980.0,0.1680069]
[1753377194853,0.5724647,118990.0,118980.0,0.6866969]
[1753377195042,0.12635255,118990.0,118980.0,1.58464015]
[1753377195756,0.12835255,118990.0,118980.0,1.58464015]
[1753377196554,0.12935255,118990.0,118980.0,1.58464015]
[1753377197251,0.12635255,118990.0,118980.0,1.58464015]
[1753377204448,0.48367,119020.0,119010.0,0.3959247]
[1753377204759,0.79542477,119020.0,119010.0,0.6359747]
[1753377204961,0.77768078,119020.0,119010.0,0.6359747]
[1753377206157,0.77968078,119020.0,119010.0,1.2519747]
[1753377206558,0.78168078,119020.0,119010.0,1.2519747]
[1753377206859,0.78168078,119020.0,119010.0,1.26048597]
[1753377207058,0.61373018,119020.0,119010.0,1.26048597]
[1753377209254,0.61373018,119020.0,119010.0,1.62048597]
[1753377209451,0.13006018,119020.0,119010.0,1.62048597]
[1753377209755,0.13006018,119020.0,119010.0,1.63908223]
[1753377209948,0.0466,119040.0,119010.0,1.49369657]
[1753377210256,0.52894043,119050.0,119040.0,0.6311524]
[1753377210457,0.6515783,119050.0,119040.0,1.2481524]
[1753377210656,0.77736558,119050.0,119040.0,1.5881524]
[1753377211159,0.77736558,119050.0,119040.0,1.5981524]
[1753377211459,0.83772615,119050.0,119040.0,1.5981524]
[1753377211647,0.83772615,119050.0,119040.0,1.3181524]
[1753377211848,0.83772615,119050.0,119040.0,1.5781524]
[1753377212153,0.83772615,119050.0,119040.0,1.2481524]
[1753377212358,0.83772615,119050.0,119040.0,1.5581524]
[1753377212661,0.83772615,119050.0,119040.0,1.6281524]
[1753377213259,0.83872615,119050.0,119040.0,1.6281524]
[1753377214959,0.83872615,119050.0,119040.0,1.69699796]
[1753377215359,0.83872615,119050.0,119040.0,1.31699796]
[1753377215755,0.83872615,119050.0,119040.0,1.64699796]
[1753377215957,0.83872615,119050.0,119040.0,1.68699796]
[1753377216460,0.83872615,119050.0,119040.0,1.31699796]
[1753377217165,0.77836558,119050.0,119040.0,1.31699796]
[1753377217355,0.77836558,119050.0,119040.0,1.65699796]
[1753377218063,0.77836558,119050.0,119040.0,1.31699796]
[1753377219464,0.83871387,119050.0,119040.0,1.31699796]
[1753377219761,0.83871387,119050.0,119040.0,0.65644796]
[1753377220066,0.7335243,119030.0,119020.0,0.4496113]
[1753377220259,0.8207785,119030.0,119020.0,1.0755713]
[1753377220465,0.90113114,119030.0,119020.0,0.01]
[1753377220760,0.94639824,119030.0,119020.0,0.62696]
[1753377221260,0.94639824,119030.0,119020.0,0.01]
[1753377221466,0.94639824,119030.0,119020.0,0.62684]
[1753377221867,0.94639824,119030.0,119020.0,0.62784]
[1753377222066,0.94639824,119030.0,119020.0,0.62884]
[1753377222268,0.94639824,119030.0,119020.0,0.012]
[1753377222665,0.94639824,119030.0,119020.0,0.7960709]
[1753377222862,0.94639824,119030.0,119020.0,0.9657809]
[1753377223470,0.94639824,119030.0,119020.0,1.29159445]
[1753377224065,0.65248684,119030.0,119020.0,1.67514445]
[1753377224370,0.17088684,119030.0,119020.0,1.67514445]
[1753377224558,0.12561974,119030.0,119020.0,1.67514445]
[1753377229577,0.17284974,119030.0,119020.0,1.67514445]
[1753377234782,0.17284974,119030.0,119020.0,1.72781014]
[1753377235081,0.19033104,119030.0,119020.0,1.67514445]
[1753377235582,0.17284974,119030.0,119020.0,1.67514445]
[1753377236284,0.17284974,119030.0,119020.0,1.72020976]
[1753377236879,0.17284974,119030.0,119020.0,1.70519646]
[1753377238278,0.17284974,119030.0,119020.0,1.67514445]
[1753377240785,0.17284974,119030.0,119020.0,1.72020976]
[1753377240786,0.12561974,119030.0,119020.0,1.72020976]
[1753377241285,0.17284974,119030.0,119020.0,1.72020976]
[1753377242388,0.17284974,119030.0,119020.0,1.75021428]
[1753377242884,0.20382974,119030.0,119020.0,1.13409428]
[1753377243185,0.77515664,119030.0,119020.0,0.61729907]
[1753377243385,0.77515664,119030.0,119020.0,1.22925907]
[1753377243587,0.77515664,119030.0,119020.0,1.46893907]
[1753377243788,0.77515664,119030.0,119020.0,0.10934807]
[1753377244089,0.94318865,119030.0,119020.0,0.85933455]
[1753377244486,0.94318865,119030.0,119020.0,0.85937455]
[1753377244787,0.94318865,119030.0,119020.0,0.24729455]
[1753377244990,0.94318865,119030.0,119020.0,0.85929455]
[1753377245382,0.94318865,119030.0,119020.0,1.02900455]
[1753377245887,0.94318865,119030.0,119020.0,1.02888455]
[1753377246290,0.94318865,119030.0,119020.0,0.85917455]
[1753377246682,0.94318865,119030.0,119020.0,0.07934355]
[1753377246887,0.94318865,119030.0,119020.0,0.69194355]
[1753377247089,0.94318865,119030.0,119020.0,0.24729445]
[1753377247387,0.94318865,119030.0,119020.0,0.85993445]
[1753377247982,0.94318865,119030.0,119020.0,0.85977445]
[1753377248883,0.94318865,119030.0,119020.0,0.07934355]
[1753377249186,0.94318865,119030.0,119020.0,0.06934355]
[1753377250083,0.94318865,119030.0,119020.0,0.23729455]
[1753377250277,0.94318865,119030.0,119020.0,0.06934355]
[1753377250486,0.94318865,119030.0,119020.0,0.06834355]
[1753377250686,0.94418865,119030.0,119020.0,0.06834355]
[1753377251085,0.94418865,119030.0,119020.0,0.06734355]
[1753377251286,0.167951,119020.0,119010.0,0.61224]
[1753377251488,0.651141,119020.0,119010.0,0.66224]
[1753377251683,0.77733138,119020.0,119010.0,0.66224]
[1753377251879,0.77733138,119020.0,119010.0,0.06300872]
[1753377252084,0.6511551,119010.0,119000.0,0.63107351]
[1753377252284,0.6511551,119010.0,119000.0,1.5766426]
[1753377252491,0.77742273,119010.0,119000.0,1.58492912]
[1753377252992,0.77742273,119010.0,119000.0,0.97237012]
[1753377253299,0.77742273,119010.0,119000.0,1.58493012]
[1753377253690,0.77742273,119010.0,119000.0,1.5766436]
[1753377253999,0.77742273,119010.0,119000.0,0.9640836]
[1753377254293,0.77742273,119010.0,119000.0,1.5760036]
[1753377254694,0.77742273,119010.0,119000.0,1.53093829]
[1753377254985,0.77742273,119010.0,119000.0,0.75103909]
[1753377255197,0.77742273,119010.0,119000.0,1.53093829]
[1753377255494,0.77742273,119010.0,119000.0,1.59854384]
[1753377255695,0.77742273,119010.0,119000.0,1.59954384]
[1753377255995,0.77742273,119010.0,119000.0,1.60054384]
[1753377256991,0.77742273,119010.0,119000.0,0.98862384]
[1753377257190,0.78605116,119010.0,119000.0,1.60094384]
[1753377258089,0.78605116,119010.0,119000.0,1.60054384]
[1753377258489,0.78605116,119010.0,119000.0,1.43256464]
[1753377258688,0.77742273,119010.0,119000.0,0.98862384]
[1753377258889,0.77742273,119010.0,119000.0,1.60102384]
[1753377259097,0.77742273,119010.0,119000.0,0.98862384]
[1753377259297,0.77742273,119010.0,119000.0,1.60090384]
[1753377260096,0.78570359,119010.0,119000.0,1.60090384]
[1753377260396,0.78570359,119010.0,119000.0,1.43292464]
[1753377260897,0.78570359,119010.0,119000.0,0.82064464]
[1753377261092,0.78570359,119010.0,119000.0,0.38960555]
[1753377261293,0.95376759,119010.0,119000.0,0.06960555]
[1753377261497,0.95376759,119010.0,119000.0,0.68104555]
[1753377262196,0.95376759,119010.0,119000.0,0.06960555]
[1753377262897,0.78570359,119010.0,119000.0,0.06960555]
[1753377263399,0.80303794,119010.0,119000.0,0.06960555]
[1753377263591,1.41387794,119010.0,119000.0,0.06960555]
[1753377264298,1.41387794,119010.0,119000.0,0.002]
[1753377264598,1.39654359,119010.0,119000.0,0.04706531]
[1753377264999,1.39654359,119010.0,119000.0,0.002]
[1753377265397,1.56460759,119010.0,119000.0,1e-07]
[1753377265597,0.4821733,118990.0,118980.0,0.90412936]
[1753377265797,0.6511833,118990.0,118980.0,1.21412936]
[1753377265994,0.77737467,118990.0,118980.0,1.21412936]
[1753377266497,0.77737467,118990.0,118980.0,1.15394]
[1753377266692,0.77737467,118990.0,118980.0,1.15494]
[1753377267198,0.77737467,118990.0,118980.0,0.72903]
[1753377267395,0.79566855,118990.0,118980.0,0.92072]
[1753377267899,0.79566855,118990.0,118980.0,0.92172]
[1753377268101,0.79566855,118990.0,118980.0,1.0897274]
[1753377268398,0.79565708,118990.0,118980.0,1.5076774]
[1753377269300,0.79565708,118990.0,118980.0,0.8980374]
[1753377269501,0.79565708,118990.0,118980.0,1.5073974]
[1753377269697,0.79565708,118990.0,118980.0,1.33939]
[1753377269902,0.79565708,118990.0,118980.0,1.4069976]
[1753377270298,0.79565708,118990.0,118980.0,0.965645]
[1753377270498,0.79565708,118990.0,118980.0,1.574325]
[1753377272101,0.79565708,118990.0,118980.0,0.965645]
[1753377272301,0.77737467,118990.0,118980.0,1.573965]
[1753377272702,0.77737467,118990.0,118980.0,1.4059576]
[1753377273001,0.79563477,118990.0,118980.0,1.4059576]
[1753377273299,0.77737467,118990.0,118980.0,1.4059576]
[1753377273504,0.795632,118990.0,118980.0,1.4059576]
[1753377273897,0.795632,118990.0,118980.0,1.1859576]
[1753377274303,0.77737467,118990.0,118980.0,1.1557576]
[1753377275306,0.77737467,118990.0,118980.0,0.5474376]
[1753377275506,0.77737467,118990.0,118980.0,0.6778476]
[1753377275702,0.77737467,118990.0,118980.0,0.002]
[1753377276409,0.79562464,118990.0,118980.0,0.002]
[1753377277709,0.71570464,118990.0,118980.0,0.002]
[1753377277910,0.79562464,118990.0,118980.0,0.002]
[1753377278207,0.77737467,118990.0,118980.0,0.002]
[1753377279206,0.79562241,118990.0,118980.0,0.002]
[1753377279813,0.96371041,118990.0,118980.0,0.002]
[1753377280713,0.79562241,118990.0,118980.0,0.002]
[1753377281709,0.96371041,118990.0,118980.0,1e-07]
[1753377282816,1.57063041,118990.0,118980.0,1e-07]
[1753377287017,1.40254241,118990.0,118980.0,1e-07]
[1753377287213,1.57063041,118990.0,118980.0,1e-07]
[1753377288220,1.92678004,118990.0,118980.0,1e-07]
[1753377289115,1.57063041,118990.0,118980.0,1e-07]
[1753377289322,1.92678004,118990.0,118980.0,1e-07]
[1753377291616,1.31986004,118990.0,118980.0,1e-07]
[1753377291816,1.92526004,118990.0,118980.0,1e-07]
[1753377293621,1.75717204,118990.0,118980.0,1e-07]
[1753377296419,1.81752818,118990.0,118980.0,1e-07]
[1753377298329,0.3555656,118960.0,118950.0,1.03426]
[1753377298531,0.65850334,118960.0,118950.0,1.44276744]
[1753377298827,0.78479387,118960.0,118950.0,1.44276744]
[1753377299224,1.1409435,118960.0,118950.0,0.28669744]
[1753377299432,1.1409435,118960.0,118950.0,0.06850744]
[1753377299623,0.3082398,118950.0,118940.0,1.08576196]
[1753377299829,0.65851754,118950.0,118940.0,1.39576196]
[1753377300030,0.78417092,118950.0,118940.0,1.39576196]
[1753377300426,0.78417092,118950.0,118940.0,1.70836159]
[1753377300931,0.78417092,118950.0,118940.0,1.75191159]
[1753377301519,0.78417092,118950.0,118940.0,1.75691159]
[1753377301720,0.19136112,118950.0,118940.0,1.75695159]
[1753377301925,0.14390112,118950.0,118940.0,1.75695159]
[1753377302128,0.14390112,118950.0,118940.0,1.76095159]
[1753377302328,0.31195092,118950.0,118940.0,1.76095159]
[1753377303128,0.31195092,118950.0,118940.0,1.82844336]
[1753377304837,0.29370318,118950.0,118940.0,1.82844336]
[1753377306138,0.29370318,118950.0,118940.0,1.47229373]
[1753377306339,0.29370318,118950.0,118940.0,1.82844336]
[1753377306833,0.29370318,118950.0,118940.0,1.80958542]
[1753377307738,0.12565338,118950.0,118940.0,1.80958542]
[1753377307939,0.2520628,118960.0,118950.0,0.5250098]
[1753377308141,0.2995228,118960.0,118950.0,1.23115943]
[1753377308342,0.42559933,118960.0,118950.0,1.23115943]
[1753377309229,0.38358743,118960.0,118950.0,1.23115943]
[1753377310242,0.38358743,118960.0,118950.0,1.23515943]
[1753377310843,0.38358743,118960.0,118950.0,1.54875943]
[1753377312947,0.38358743,118960.0,118950.0,1.55175943]
[1753377313248,0.40190167,118960.0,118950.0,1.55175943]
[1753377313945,0.40190167,118960.0,118950.0,1.1356098]
[1753377314246,0.40190167,118960.0,118950.0,1.49175943]
[1753377314848,0.43413167,118960.0,118950.0,1.49175943]
[1753377315047,0.59714167,118960.0,118950.0,1.49175943]
[1753377317349,0.59714167,118960.0,118950.0,1.81175943]
[1753377317550,0.43413167,118960.0,118950.0,1.51175943]
[1753377318151,0.43413167,118960.0,118950.0,1.49175943]
[1753377318350,0.43413167,118960.0,118950.0,1.1556098]
[1753377318550,0.40190167,118960.0,118950.0,1.49175943]
[1753377318751,0.40190167,118960.0,118950.0,1.1356098]
[1753377318947,0.40190167,118960.0,118950.0,1.1556098]
[1753377319149,0.40190167,118960.0,118950.0,1.49175943]
[1753377320452,0.38358743,118960.0,118950.0,1.51175943]
[1753377320752,0.38358743,118960.0,118950.0,1.49175943]
[1753377321053,0.41631743,118960.0,118950.0,1.1356098]
[1753377321251,0.57932743,118960.0,118950.0,1.49175943]
[1753377321654,0.57932743,118960.0,118950.0,1.1356098]
[1753377321954,0.75419737,118960.0,118950.0,1.49175943]
[1753377322153,0.73586743,118960.0,118950.0,1.49175943]
[1753377322346,0.57285743,118960.0,118950.0,1.51175943]
[1753377322542,0.38358743,118960.0,118950.0,1.87175943]
[1753377323141,0.14440599,118960.0,118950.0,2.47790906]
[1753377323347,0.4428639,118990.0,118980.0,0.1680074]
[1753377323550,0.5931049,119000.0,118990.0,0.3630133]
[1753377323748,0.5931049,119000.0,118990.0,0.71916293]
[1753377323947,0.80045872,119000.0,118990.0,0.71916293]
[1753377324454,0.80045872,119000.0,118990.0,0.72766322]
[1753377324643,0.80045872,119000.0,118990.0,0.37151359]
[1753377324842,0.80045872,119000.0,118990.0,0.72766322]
[1753377325052,0.80145872,119000.0,118990.0,0.72766322]
[1753377325447,0.84796872,119000.0,118990.0,0.72766322]
[1753377325652,0.84896872,119000.0,118990.0,0.72766322]
[1753377326453,0.84896872,119000.0,118990.0,0.37151359]
[1753377326648,0.84896872,119000.0,118990.0,0.72766322]
[1753377327454,0.84896872,119000.0,118990.0,0.37151359]
[1753377327658,0.84896872,119000.0,118990.0,0.72766322]
[1753377330853,0.84896872,119000.0,118990.0,0.37151359]
[1753377331051,0.84896872,119000.0,118990.0,0.72766322]
[1753377332757,0.84896872,119000.0,118990.0,1.33046322]
[1753377335357,0.86718648,119000.0,118990.0,1.33046322]
[1753377336260,0.86718648,119000.0,118990.0,0.97431359]
[1753377336460,0.86718648,119000.0,118990.0,1.33046322]
[1753377337162,0.87051594,119000.0,118990.0,1.33046322]
[1753377337364,0.75533868,119000.0,118990.0,1.69046322]
[1753377337960,0.75533868,119000.0,118990.0,1.33046322]
[1753377338162,0.82518868,119000.0,118990.0,1.33046322]
[1753377341866,0.82518557,119000.0,118990.0,1.33046322]
[1753377342162,0.70705557,119000.0,118990.0,1.33046322]
[1753377342365,0.40305557,119000.0,118990.0,1.35046322]
[1753377342763,0.40305557,119000.0,118990.0,1.33046322]
[1753377342962,0.40305557,119000.0,118990.0,1.35046322]
[1753377343164,0.40305557,119000.0,118990.0,1.67046322]
[1753377343463,0.40305557,119000.0,118990.0,1.35046322]
[1753377343666,0.40305557,119000.0,118990.0,1.70046322]
[1753377343864,0.40305557,119000.0,118990.0,1.35046322]
[1753377344063,0.35654557,119000.0,118990.0,1.61080322]
[1753377344365,0.31453767,119000.0,118990.0,1.65731322]
[1753377344665,0.14655847,119000.0,118990.0,1.65731322]
[1753377345060,0.14655847,119000.0,118990.0,1.30116359]
[1753377345258,0.14655847,119000.0,118990.0,1.65731322]
[1753377346163,0.31453757,119000.0,118990.0,1.65731322]
[1753377346370,0.14655847,119000.0,118990.0,1.65731322]
[1753377346560,0.31453757,119000.0,118990.0,1.30116359]
[1753377346761,0.35996757,119000.0,118990.0,1.65731322]
[1753377347165,0.52723757,119000.0,118990.0,1.65731322]
[1753377348762,0.19198847,119000.0,118990.0,1.65731322]
[1753377349160,0.14655847,119000.0,118990.0,1.65731322]
[1753377350568,0.31453757,119000.0,118990.0,1.65731322]
[1753377350871,0.14655847,119000.0,118990.0,1.65731322]
[1753377354770,0.12834382,119000.0,118990.0,1.65731322]
[1753377355275,0.12834382,119000.0,118990.0,2.01346285]
[1753377356771,0.12734382,119000.0,118990.0,2.01346285]
[1753377357468,0.39176,119030.0,119020.0,0.04651]
[1753377357768,0.39176,119030.0,119020.0,1.2868409]
[1753377357769,0.18953489,119030.0,119020.0,1.2868409]
[1753377358071,0.17134384,119030.0,119020.0,0.9868409]
[1753377358277,0.17134384,119030.0,119020.0,1.65299053]
[1753377358474,0.33861384,119030.0,119020.0,1.65299053]
[1753377358669,0.33861384,119030.0,119020.0,1.71898044]
[1753377358872,0.69346064,119030.0,119020.0,1.71898044]
[1753377359071,0.76392064,119030.0,119020.0,1.71898044]
[1753377359772,0.59598384,119030.0,119020.0,1.71898044]
[1753377359968,0.59598384,119030.0,119020.0,1.36283081]
[1753377360168,0.76392064,119030.0,119020.0,0.78578044]
[1753377360371,0.76392064,119030.0,119020.0,0.73931991]
[1753377360574,0.76392064,119030.0,119020.0,0.95520081]
[1753377360775,0.76392064,119030.0,119020.0,0.98576081]
[1753377360970,0.76392064,119030.0,119020.0,1.34191044]
[1753377361978,0.76392064,119030.0,119020.0,1.38842044]
[1753377362178,0.76492064,119030.0,119020.0,1.38842044]
[1753377362379,0.76492064,119030.0,119020.0,1.38830044]
[1753377363074,0.76492064,119030.0,119020.0,1.03215081]
[1753377363378,0.76492064,119030.0,119020.0,1.34179044]
[1753377363976,0.76492064,119030.0,119020.0,1.34171044]
[1753377364178,0.76492064,119030.0,119020.0,0.83638081]
[1753377364380,0.76392064,119030.0,119020.0,0.83638081]
[1753377364584,0.76492064,119030.0,119020.0,1.19253044]
[1753377364985,0.78108439,119030.0,119020.0,1.19253044]
[1753377365687,0.78108439,119030.0,119020.0,1.31115044]
[1753377365888,0.78108439,119030.0,119020.0,0.73927044]
[1753377366078,0.78108439,119030.0,119020.0,1.34171044]
[1753377367089,0.76292064,119030.0,119020.0,1.34171044]
[1753377367390,0.781086,119030.0,119020.0,1.34171044]
[1753377368089,0.76292064,119030.0,119020.0,1.34171044]
[1753377368290,0.78108597,119030.0,119020.0,1.34171044]
[1753377369292,0.78108597,119030.0,119020.0,0.98556081]
[1753377369691,0.78108597,119030.0,119020.0,1.34171044]
[1753377370291,0.78108597,119030.0,119020.0,0.98556081]
[1753377370488,0.78108597,119030.0,119020.0,1.34171044]
[1753377371296,0.78108597,119030.0,119020.0,0.73927044]
[1753377371590,0.78108597,119030.0,119020.0,1.34163044]
[1753377372490,1.1372356,119030.0,119020.0,0.06598991]
[1753377372792,1.1372356,119030.0,119020.0,0.60236]
[1753377372991,0.78108597,119030.0,119020.0,0.60236]
[1753377373192,1.1372356,119030.0,119020.0,0.60236]
[1753377373593,0.644755,119010.0,119000.0,0.14953]
[1753377373793,0.7707369,119010.0,119000.0,0.9298691]
[1753377373995,0.89598294,119010.0,119000.0,0.76189]
[1753377374294,0.89598294,119010.0,119000.0,0.9298691]
[1753377374694,0.9141718,119010.0,119000.0,0.9298691]
[1753377374897,0.9141718,119010.0,119000.0,1.28801873]
[1753377375492,0.9141718,119010.0,119000.0,1.28797873]
[1753377375995,0.8721776,119010.0,119000.0,1.70963565]
[1753377376392,0.8301834,119010.0,119000.0,1.70963565]
[1753377376591,0.12524604,119010.0,119000.0,2.09534406]
[1753377377088,0.29321104,119010.0,119000.0,2.10086406]
[1753377378095,0.29321104,119010.0,119000.0,2.10186406]
[1753377378600,0.34226104,119010.0,119000.0,2.10186406]
[1753377379996,0.77000104,119010.0,119000.0,1.13787443]
[1753377380300,0.77000104,119010.0,119000.0,1.74519443]
[1753377381198,0.77000104,119010.0,119000.0,1.3890448]
[1753377381496,0.77000104,119010.0,119000.0,1.74519443]
[1753377382093,0.77000104,119010.0,119000.0,1.42519443]
[1753377382299,0.77000104,119010.0,119000.0,1.78519443]
[1753377383197,0.78821799,119010.0,119000.0,1.78519443]
[1753377386097,0.78821799,119010.0,119000.0,1.4290448]
[1753377386301,0.78821799,119010.0,119000.0,1.76619714]
[1753377386798,0.78821799,119010.0,119000.0,1.15887714]
[1753377387005,0.78821799,119010.0,119000.0,1.40451714]
[1753377387202,0.78821799,119010.0,119000.0,1.73451714]
[1753377387399,0.78821799,119010.0,119000.0,1.40451714]
[1753377387703,0.77000104,119010.0,119000.0,1.40451714]
[1753377387905,0.78822289,119010.0,119000.0,1.40451714]
[1753377389403,0.78822289,119010.0,119000.0,0.18261841]
[1753377389603,0.78822289,119010.0,118970.0,0.07339]
[1753377389604,0.19913,118980.0,118970.0,0.07339]
[1753377389808,0.3536615,118970.0,118960.0,0.80952632]
[1753377390009,0.6448115,118970.0,118960.0,1.65371155]
[1753377390209,0.77071683,118970.0,118960.0,1.65371155]
[1753377390606,0.77071683,118970.0,118960.0,1.29752192]
[1753377390804,0.77071683,118970.0,118960.0,0.46953]
[1753377391003,0.78960629,118970.0,118960.0,0.24953]
[1753377391202,0.77071683,118970.0,118960.0,0.003]
[1753377391410,0.78959768,118970.0,118960.0,0.003]
[1753377391603,1.14574731,118970.0,118960.0,0.003]
[1753377392410,1.14574731,118970.0,118960.0,0.005]
[1753377392599,0.78959768,118970.0,118960.0,0.005]
[1753377392804,1.14574731,118970.0,118960.0,0.005]
[1753377393306,1.12686646,118970.0,118960.0,0.005]
[1753377395407,1.38823683,118970.0,118960.0,0.005]
[1753377396107,1.74438646,118970.0,118960.0,0.005]
[1753377397404,1.38823683,118970.0,118960.0,0.005]
[1753377397813,1.74438646,118970.0,118960.0,0.005]
[1753377398212,1.38823683,118970.0,118960.0,0.005]
[1753377398415,1.74438646,118970.0,118960.0,0.005]
[1753377398614,1.38823683,118970.0,118960.0,0.005]
[1753377398810,1.74438646,118970.0,118960.0,0.005]
[1753377399409,1.38823683,118970.0,118960.0,0.005]
[1753377399610,1.74438646,118970.0,118960.0,0.005]
[1753377399907,0.1681058,118910.0,118900.0,0.3277631]
[1753377400108,0.6323058,118910.0,118900.0,1.34763495]
[1753377400307,0.75860628,118910.0,118900.0,1.34763495]
[1753377401113,0.34351628,118910.0,118900.0,1.69763495]
[1753377401415,0.29440628,118910.0,118900.0,1.70179495]
[1753377401621,0.29440628,118910.0,118900.0,1.76833848]
[1753377401917,0.29440628,118910.0,118900.0,1.15149848]
[1753377402225,0.29440628,118910.0,118900.0,1.76833848]
[1753377403014,0.34351628,118910.0,118900.0,1.76833848]
[1753377403408,0.34351628,118910.0,118900.0,1.41218885]
[1753377403604,0.34351628,118910.0,118900.0,1.76833848]
[1753377404511,0.34351628,118910.0,118900.0,1.59946488]
[1753377404712,0.34351628,118910.0,118900.0,1.76758518]
[1753377404912,0.34351628,118910.0,118900.0,1.24331525]
[1753377405113,0.49944628,118910.0,118900.0,1.59946488]
[1753377405313,0.75860628,118910.0,118900.0,1.41143555]
[1753377405713,0.75860628,118910.0,118900.0,1.76758518]
[1753377405911,0.75860628,118910.0,118900.0,1.41143555]
[1753377406110,0.75860628,118910.0,118900.0,1.59926488]
[1753377406311,0.75860628,118910.0,118900.0,1.24303525]
[1753377406510,0.75860628,118910.0,118900.0,1.17669172]
[1753377408914,1.09672158,118890.0,118880.0,0.61634]
[1753377409210,1.15865329,118890.0,118880.0,0.0001]
[1753377409515,1.15865329,118890.0,118880.0,0.61634]
[1753377409910,1.15865329,118890.0,118880.0,0.61734]
[1753377410416,0.74057195,118890.0,118880.0,0.66325]
[1753377410612,0.74057195,118890.0,118880.0,0.8303985]
[1753377410913,0.69246195,118890.0,118880.0,1.2472385]
[1753377411211,0.74257195,118890.0,118880.0,1.07881]
[1753377411618,0.74257195,118890.0,118880.0,1.2473985]
[1753377411817,0.74357195,118890.0,118880.0,0.46285]
[1753377412215,0.74357195,118890.0,118880.0,1.07921]
[1753377412411,0.74357195,118890.0,118880.0,1.2473585]
[1753377413214,0.74357195,118890.0,118880.0,1.2472385]
[1753377414521,0.64198195,118890.0,118880.0,1.66531984]
[1753377414715,0.59365195,118890.0,118880.0,1.66531984]
[1753377415217,0.59365195,118890.0,118880.0,1.2472385]
[1753377415413,0.64613195,118890.0,118880.0,1.2472385]
[1753377415617,0.74357195,118890.0,118880.0,1.43885]
[1753377416019,0.76480128,118890.0,118880.0,0.82285]
[1753377416214,0.76480128,118890.0,118880.0,1.43877]
[1753377416423,0.76480128,118890.0,118880.0,1.6069185]
[1753377416825,0.76480128,118890.0,118880.0,2.02507984]
[1753377417018,0.76480128,118890.0,118880.0,1.43885]
[1753377417220,0.76480128,118890.0,118880.0,1.07885]
[1753377417419,0.89090718,118890.0,118880.0,0.04591]
[1753377417714,0.89090718,118890.0,118880.0,0.66163]
[1753377418818,0.89090718,118890.0,118880.0,0.66223]
[1753377419013,0.6141681,118880.0,118870.0,0.35277]
[1753377419220,0.6141681,118880.0,118860.0,0.30686]
[1753377419221,0.3566623,118870.0,118860.0,0.30686]
[1753377419420,0.63541163,118870.0,118860.0,1.29282]
[1753377419621,0.76122548,118870.0,118860.0,1.29282]
[1753377420127,0.76122548,118870.0,118860.0,1.4609964]
[1753377420425,0.76122548,118870.0,118860.0,1.87907774]
[1753377420630,0.76122548,118870.0,118860.0,1.88307774]
[1753377420828,0.31520548,118870.0,118860.0,1.88307774]
[1753377421026,0.31520558,118870.0,118860.0,1.88307774]
[1753377421324,0.14704318,118870.0,118860.0,1.92898774]
[1753377421718,0.12581385,118870.0,118860.0,1.92898774]
[1753377421920,0.12581385,118870.0,118860.0,2.09724374]
[1753377422122,0.29397625,118870.0,118860.0,2.09724374]
[1753377422328,0.06680385,118870.0,118860.0,2.09724374]
[1753377422630,0.2942406,118890.0,118880.0,0.6308983]
[1753377422831,0.31539404,118890.0,118880.0,1.66517964]
[1753377423024,0.44113084,118890.0,118880.0,1.66517964]
[1753377424721,0.78634084,118890.0,118880.0,1.07895]
[1753377424926,0.78634084,118890.0,118880.0,1.49703134]
[1753377425228,0.88715084,118890.0,118880.0,0.8091]
[1753377425925,0.88715084,118890.0,118880.0,0.96877]
[1753377426127,0.88715084,118890.0,118880.0,1.1369183]
[1753377426631,0.88815084,118890.0,118880.0,1.07875]
[1753377427429,0.88815084,118890.0,118880.0,1.07815]
[1753377427630,0.88815084,118890.0,118880.0,1.2462983]
[1753377427830,0.88815084,118890.0,118880.0,1.07815]
[1753377428329,0.78734084,118890.0,118880.0,1.66437964]
[1753377428930,0.83982084,118890.0,118880.0,1.66437964]
[1753377429126,0.88815084,118890.0,118880.0,1.66437964]
[1753377429529,0.88815084,118890.0,118880.0,1.49623134]
[1753377429926,0.88815084,118890.0,118880.0,0.46275]